[Event "1st Henriquez Urena Memorial 2022"]
[Site "Santo Domingo"]
[Date "2022.09.21"]
[Round "6.6"]
[White "Mendez Ramirez, Victor"]
[Black "Ferreira Fernandez, Sergio"]
[Result "1-0"]
[ECO "E73"]
[WhiteElo "2153"]
[BlackElo "2119"]
[Annotator "TA"]
[PlyCount "125"]
[EventDate "2022.09.16"]
[EventType "swiss"]
[EventCountry "DOM"]
[SourceTitle "playchess.com"]
[Source "ChessBase"]
[SourceQuality "1"]
[TimeControl "5400+30"]

{[%evp 22,125,100,89,141,139,143,117,139,127,168,134,137,118,145,128,119,92,132,125,125,124,124,124,124,124,124,124,140,160,160,160,174,167,204,167,160,134,134,108,108,108,108,108,108,108,108,108,108,108,108,108,108,108,108,101,101,101,101,84,84,84,139,139,164,164,163,163,163,163,391,163,697,592,714,689,663,644,570,538,4280,4079,3792,3445,2888,2714,3647,3449,2621,2273,5891,866,12834,2393,29972,29973,29972,29973,29969,0,29967,0,29967,12834,12834,7340]} 1. c4 {[%emt 1:31:00]} Nf6 {[%emt 1:31:00]} 2. Nc3 {[%emt 0:00:30]} g6 {[%emt 0:00:00]} 3. e4 {[%emt 0:00:00]} d6 {[%emt 0:01:00]} 4. d4 {[%emt 0:00:00]} Bg7 {[%emt 0:00:30]} 5. Be2 {[%emt 0:00:00]} O-O {[%emt 0:00:00]} 6. Bg5 {[%emt 0:00:00]} h6 {[%emt 0:00:00]} 7. Be3 {[%emt 0:00:00]} e5 {[%emt 0:00:00]} 8. d5 {[%emt 0:00:00]} Nbd7 {[%emt 0:00:00]} 9. g4 {[%emt 0:00:00]} Nc5 {[%emt 0:00:00]} 10. f3 {[%emt 0:00:00]} a5 {[%emt 0:00:00]} 11. Qd2 {[%emt 0:00:00]} Kh7 {[%emt 0:00:00]} 12. h4 {[%emt 0:00:00]} Nfd7 {[%emt 0:00:00] E73: King's Indian: Averbakh Variation without 6...c5.} (12... h5 $142) 13. O-O-O $16 {[%emt 0:00:00] [#]} Na6 $146 {[%emt 0:00:00]} ({Predecessor:} 13... a4 14. h5 g5 15. Nh3 Bf6 16. Nf2 Be7 17. Nb5 Ra6 18. Qc2 c6 19. dxc6 Rxc6 {0-1 (58) Thoma,C (2156)-Vykouk,J (2477) Wuerttemberg 2020}) 14. Nh3 {[%emt 0:00:00]} Ndc5 {[%emt 0:00:00] White is better.} 15. Nf2 {[%emt 0:00:00]} b6 {[%emt 0:00:00]} 16. Rdg1 {[%emt 0:00:00]} Bd7 {[%emt 0:00:00]} 17. Bd1 {[%emt 0:00:00]} Qe7 {[%emt 0:06:30]} 18. h5 {[%emt 0:00:00][%cal Oe3h6] Threatens to win with Bxh6!} g5 {[%emt 0:00:00]} 19. Nd3 {[%emt 0:00:00]} f6 {[%emt 0:00:00]} 20. Nxc5 {[%emt 0:00:00]} Nxc5 {[%emt 0:01:30]} 21. Bxc5 {[%emt 0:00:00]} bxc5 {[%emt 0:00:00] [#]} 22. Ba4 $1 {[%emt 0:00:00]} Bxa4 {[%emt 0:00:00]} 23. Nxa4 {[%emt 0:00:00]} Rfb8 {[%emt 0:00:00]} 24. Qc2 {[%emt 0:00:00]} Rb4 {[%emt 0:00:00]} 25. a3 {[%emt 0:00:00]} Rb7 {[%emt 0:00:00]} 26. Nc3 {[%emt 0:00:00]} Bf8 {[%emt 0:00:00]} 27. Qa4 {[%emt 0:00:00]} Qe8 {[%emt 0:00:00]} 28. Nb5 {[%emt 0:00:00]} Be7 {[%emt 0:00:00]} 29. Kc2 {[%emt 0:00:00]} Kg7 {[%emt 0:00:00]} 30. b3 {[%emt 0:00:00]} Kf8 {[%emt 0:00:00]} 31. Ra1 {[%emt 0:00:00]} Qc8 {[%emt 0:00:00]} 32. Rhb1 {[%emt 0:00:00][%cal Bh1b1,Bb1b2,Bb2a2][%mdl 32]} Rb6 {[%emt 0:00:00]} 33. Nc3 {[%emt 0:00:00]} Kf7 {[%emt 0:00:00]} 34. Nd1 {[%emt 0:00:00]} Bf8 {[%emt 0:00:00]} 35. Rb2 {[%emt 0:00:00]} Be7 {[%emt 0:00:00]} 36. Rba2 {[%emt 0:00:00]} Raa6 {[%emt 0:00:00]} 37. Nc3 {[%emt 0:00:00]} Bd8 {[%emt 0:00:00]} 38. Nb5 {[%emt 0:00:00]} Ke7 {[%emt 0:09:00]} 39. Kd3 {[%emt 0:07:16]} Rb8 {[%emt 0:00:30]} 40. b4 {[%emt 0:02:06] White has more active pieces.} axb4 {[%emt 0:00:00]} 41. Qb3 bxa3 {[%emt 0:00:00]} ({Black should play} 41... c6 42. dxc6 Bb6) 42. Rxa3 Rxa3 {[%emt 0:00:00]} 43. Rxa3 ({Don't do} 43. Qxa3 Kf7 $16) 43... Qb7 {[%emt 0:02:00]} 44. Qa2 {[%emt 0:11:38][%mdl 1024] And now Na7 would win. White has strong compensation.} Kf8 {[%emt 0:00:00]} 45. Ra6 {[%emt 0:00:00]} Ke7 $2 {[%emt 0:00:00]} (45... Rc8 46. Qa5 Rb8) 46. Qa4 (46. Na7 $142) 46... Rc8 $2 {[%emt 0:01:30]} (46... Kf8 47. Qa5 Qc8) 47. Na7 $18 {[%emt 0:00:00]} Qb1+ {[%emt 0:00:00]} 48. Kd2 {[%emt 0:00:00]} Qb2+ {[%emt 0:00:00]} 49. Qc2 {[%emt 0:00:00]} Rb8 {[%emt 0:00:02]} 50. Nc6+ {[%emt 0:00:00]} Kd7 {[%emt 0:00:30]} 51. Nxb8+ {[%emt 0:00:00]} Qxb8 {[%emt 0:00:30][%mdl 4096] Endgame KQR-KQB} 52. Qa4+ {[%emt 0:00:00]} Ke7 {[%emt 0:00:33]} 53. Kc2 {[%emt 0:00:00]} Qc8 {[%emt 0:00:30]} 54. Ra5 {[%emt 0:00:00]} Qd7 {[%emt 0:00:30]} 55. Rb5 {[%emt 0:00:04] Qa8 is the strong threat.} Ke8 {[%emt 0:00:30]} 56. Qa7 {[%emt 0:00:30]} (56. Qa8 $142 Kf8 57. Rb8) 56... Ke7 {[%emt 0:00:30]} 57. Kb3 {[%emt 0:00:30]} (57. Rb8 $142 Ke8 58. Kd2) 57... Ke8 {[%emt 0:00:30]} 58. Rb8 {[%emt 0:00:30]} Qf7 {[%emt 0:00:30]} 59. Qa8 {[%emt 0:00:30]} Qe7 {[%emt 0:00:30]} 60. Qa7 $2 {[%emt 0:01:51]} (60. Ka4 {mates} Qd7+ 61. Kb3 Ke7 62. Qb7 Kf8 63. Qb5 Qxb5+ 64. cxb5 Ke7 65. Ra8) 60... Kf8 $2 {[%emt 0:01:08][%mdl 8192] [#]} (60... Qf7 $11 61. Qa4+ Ke7) 61. Qa8 {[%emt 0:01:16]} Ke8 {[%emt 0:00:00]} 62. Ka4 {[%emt 0:01:37] Kb5 would kill now.} Qd7+ {[%emt 0:01:12]} 63. Qc6 {[%emt 0:00:02] Weighted Error Value: White=0.34/Black=0.49} 1-0

[Event "1st Henriquez Urena Memorial 2022"]
[Site "Santo Domingo"]
[Date "2022.09.21"]
[Round "6.7"]
[White "Crispin Ferreras, Darvi Abraham"]
[Black "Camacho Campusano, David Daniel"]
[Result "1-0"]
[ECO "A26"]
[WhiteElo "2160"]
[BlackElo "2230"]
[Annotator "TA"]
[PlyCount "67"]
[EventDate "2022.09.16"]
[EventType "swiss"]
[EventCountry "DOM"]
[SourceTitle "playchess.com"]
[Source "ChessBase"]
[SourceQuality "1"]
[TimeControl "5400+30"]

{[%evp 16,67,10,10,11,8,25,8,27,18,22,20,20,20,20,12,15,13,19,8,77,25,42,26,133,132,110,26,32,20,74,69,96,77,89,68,106,107,105,107,101,108,285,276,427,431,468,325,1348,1297,29981,29982,29993,29993]} 1. Nf3 {[%emt 0:11:32]} d6 {[%emt 0:01:29]} 2. g3 {[%emt 0:02:29]} e5 {[%emt 0:01:27]} 3. d3 {[%emt 0:00:07]} Nf6 {[%emt 0:01:30]} 4. Bg2 {[%emt 0:00:11]} g6 {[%emt 0:03:12]} 5. O-O {[%emt 0:01:15]} Bg7 {[%emt 0:00:04]} 6. c4 {[%emt 0:00:33]} O-O {[%emt 0:00:20]} 7. Nc3 {[%emt 0:00:18]} Nc6 {[%emt 0:03:47]} 8. Rb1 {[%emt 0:02:29]} a5 {[%emt 0:02:26]} 9. b3 {[%emt 0:03:50]} h6 {[%emt 0:02:14] A26: English Opening vs King's Indian with ...Nc6 and d3.} 10. Bb2 {[%emt 0:00:29]} Nh5 {[%emt 0:01:11]} 11. Nd5 {[%emt 0:12:03]} f5 {[%emt 0:05:19] The position is equal.} 12. e3 {[%emt 0:01:11]} Ne7 {[%emt 0:02:13] [#]} 13. Nd2 $146 {[%emt 0:08:36]} ({Predecessor:} 13. Nh4 Kh7 14. Nxe7 Qxe7 15. Nf3 c6 16. Qc2 Bd7 {½-½ (16) Korov,Z (2119)-Pecnik,L (2261) Zagreb 2010}) 13... c6 {[%emt 0:02:47]} 14. Nxe7+ {[%emt 0:03:35]} Qxe7 {[%emt 0:00:14]} 15. Re1 {[%emt 0:00:08]} Bd7 {[%emt 0:11:44]} 16. f4 {[%emt 0:01:12]} Rae8 {[%emt 0:02:35]} 17. Nf3 {[%emt 0:01:37][%cal Oc4c5]} Qf7 {[%emt 0:05:50]} (17... Qd8 $11) 18. Qd2 {[%emt 0:07:13]} ({White should try} 18. Ba3 $16 exf4 19. exf4) 18... b6 {[%emt 0:16:50]} 19. Rf1 {[%emt 0:20:08]} c5 {[%emt 0:05:38]} (19... exf4 $11 {remains equal.} 20. exf4 Bxb2 21. Rxb2 c5) 20. fxe5 $16 {[%emt 0:00:09]} dxe5 {[%emt 0:00:21] [#]} 21. d4 {[%emt 0:00:13]} (21. g4 $1 $16 {[%cal Rg4h5]} e4 22. gxh5 exf3 23. hxg6 (23. Bxf3 Bxb2 24. Rxb2 gxh5 $14) (23. Rxf3 g5 $14) 23... Qxg6 24. Rxf3) 21... e4 $11 {[%emt 0:18:00]} 22. Ne5 {[%emt 0:00:07]} Qe6 {[%emt 0:02:27]} (22... Bxe5 $11 23. dxe5 Bc6) 23. g4 {[%emt 0:07:32] White is more active.} Bxe5 {[%emt 0:05:53]} 24. dxe5 {[%emt 0:00:19]} Ng7 {[%emt 0:00:24]} 25. Rbd1 {[%emt 0:00:24]} Bc6 {[%emt 0:01:05]} 26. Qc3 $36 {[%emt 0:01:53][%mdl 2048] Strongly threatening Rd6. White is in control.} Rd8 {[%emt 0:01:26] Against Rd6} 27. Rd6 $1 {[%emt 0:00:38]} Rxd6 {[%emt 0:00:25]} 28. exd6 {[%emt 0:00:01][%csl Gb2][%cal Rc3g7]} Qd7 {[%emt 0:00:52] A mistake that costs the game.} (28... Rf7 $16 {is a better defense.}) 29. gxf5 $18 {[%emt 0:00:44]} gxf5 {[%emt 0:02:21]} (29... Rf7 $142 30. Qe5 gxf5) 30. Bh3 {[%emt 0:00:32][%cal Bg2h3,Bh3f5,Bf5e6][%mdl 32] A strong pair of Bishops.} Kh7 {[%emt 0:00:38]} 31. Rf2 {[%emt 0:02:00] Rg2 would kill now.} Rf7 $2 {[%emt 0:00:47]} (31... Rg8 32. Rg2 Qf7) 32. Rg2 {[%emt 0:00:18][%cal Oh3f5] White wants to mate with Bxf5+!} Kg8 {[%emt 0:01:01] [#]} 33. Bxf5 $1 {[%emt 0:01:26][%mdl 512]} Qb7 {[%emt 0:00:30]} (33... Qxd6 34. Rxg7+) 34. Be6 {[%emt 0:00:17] Weighted Error Value: White=0.18 (very precise) /Black=0.55} 1-0

[Event "1st Henriquez Urena Memorial 2022"]
[Site "Santo Domingo"]
[Date "2022.09.21"]
[Round "6.8"]
[White "Subervi, Jonathan Sigfredo"]
[Black "Orizondo, Hugo"]
[Result "0-1"]
[ECO "D25"]
[WhiteElo "2124"]
[BlackElo "2034"]
[Annotator "TA"]
[PlyCount "86"]
[EventDate "2022.09.16"]
[EventType "swiss"]
[EventCountry "DOM"]
[SourceTitle "playchess.com"]
[Source "ChessBase"]
[SourceQuality "1"]
[TimeControl "5400+30"]

{[%evp 9,86,41,35,27,33,19,24,23,27,12,12,0,12,0,55,41,72,25,67,46,68,93,110,112,122,107,103,85,120,123,114,94,106,103,262,140,211,88,92,91,81,70,102,37,24,0,45,46,31,-21,249,0,0,0,157,90,94,93,92,-8,-2,-3,40,-121,0,-187,-188,-187,-148,-151,-147,-157,-139,-187,-187,-588,-622,-602,-600]} 1. Nf3 {[%emt 0:07:42]} Nf6 {[%emt 0:00:23]} 2. d4 {[%emt 0:05:04]} d5 {[%emt 0:01:48]} 3. c4 {[%emt 0:00:26]} dxc4 {[%emt 0:03:15]} 4. e3 {[%emt 0:01:08]} b5 {[%emt 0:08:15]} 5. a4 {[%emt 0:05:27]} b4 {[%emt 0:00:32]} 6. Bxc4 {[%emt 0:02:25] D25: Queen's Gambit Accepted: 4 e3: sidelines and 4...Bg4.} e6 {[%emt 0:00:51]} 7. O-O {[%emt 0:05:24]} Be7 {[%emt 0:01:17]} 8. Qe2 {[%emt 0:00:32] White has an edge.} O-O $1 {[%emt 0:02:49][%mdl 4] is now more promising than 8...Bb7.} 9. Rd1 {[%emt 0:00:13]} Bb7 {[%emt 0:00:12]} 10. a5 {[%emt 0:13:24]} Nbd7 {[%emt 0:06:14]} 11. Nbd2 {[%emt 0:10:04] [#]} Ne4 $146 {[%emt 0:04:13]} (11... c5 $11) ({Predecessor:} 11... a6 12. Nb3 Qb8 13. Bd2 Rc8 14. Ne5 c5 15. Nxd7 Nxd7 16. dxc5 Nxc5 17. Nxc5 Bxc5 {0-1 (35) Milovanovic,S (2217)-Marjanovic,D (2316) Vrnjacka Banja 2015}) 12. a6 {[%emt 0:14:53]} Bc6 {[%emt 0:04:54]} 13. Bd3 {[%emt 0:01:47]} (13. Nb3 $16) 13... Nxd2 {[%emt 0:15:41]} 14. Bxd2 {[%emt 0:01:32]} Rc8 {[%emt 0:02:35]} 15. e4 {[%emt 0:22:08][%cal Be3e4,Be4e5][%mdl 32]} Nf6 {[%emt 0:01:13] Inhibits d5.} 16. d5 $36 {[%emt 0:03:28][%mdl 2048] Keeping Black busy.} exd5 {[%emt 0:04:47]} 17. e5 {[%emt 0:00:09]} Ne4 {[%emt 0:07:01] [#]} 18. Bxb4 {[%emt 0:02:40][%mdl 512]} Qe8 {[%emt 0:03:05]} (18... f5 19. exf6) 19. Bxe7 {[%emt 0:00:17]} Qxe7 {[%emt 0:00:23]} 20. Qe3 {[%emt 0:00:54]} Rb8 {[%emt 0:11:01]} 21. Qxa7 {[%emt 0:00:33] Rdc1 is the strong threat.} Rxb2 $2 {[%emt 0:01:28]} (21... Rb6 $16 {was called for.} 22. Bxe4 dxe4) 22. Rdc1 {[%emt 0:00:13]} (22. Rdb1 $1 $18 {[%cal Rb1b2]} Rxb1+ 23. Rxb1) 22... Ra8 {[%emt 0:03:20]} (22... Rb6 $16) 23. Qd4 {[%emt 0:00:30]} (23. Qe3 $1 $18 Rb6 24. Ra5) 23... Rb4 $16 {[%emt 0:03:08]} 24. Qe3 {[%emt 0:00:14]} Be8 {[%emt 0:01:16]} 25. h3 {[%emt 0:01:05]} c5 {[%emt 0:13:19]} 26. Bf1 {[%emt 0:00:45]} (26. Rcb1 $16) 26... Bc6 {[%emt 0:00:00]} 27. Bd3 {[%emt 0:00:13] Threatens to win with Bxe4.} d4 {[%emt 0:00:00]} 28. Qf4 {[%emt 0:00:24]} Nc3 {[%emt 0:00:00]} 29. Kh1 {[%emt 0:00:24]} (29. Re1 $14) 29... Rb2 $2 {[%emt 0:00:00][%mdl 8192] [#]} (29... Bd5 $11) 30. Rc2 $2 {[%emt 0:00:54]} ({White must play} 30. Nxd4 $1 $18 {[%mdl 512]} cxd4 31. Qxd4) 30... Rxc2 $11 {[%emt 0:00:00]} 31. Bxc2 {[%emt 0:00:02]} Bb5 $2 {[%emt 0:00:00] [#]} (31... Bd5 $11) 32. Nxd4 $1 {[%emt 0:00:57][%mdl 512]} cxd4 $16 {[%emt 0:00:00]} 33. Qxd4 {[%emt 0:00:04]} Qc7 {[%emt 0:00:00]} 34. a7 {[%emt 0:00:50] [#]} ({White should play} 34. Ra3 $1 $16 {[%cal Ra3c3]} Qd7 35. Qxc3 Rxa6 36. Rxa6 Bxa6 37. Kg1) 34... Bc6 $1 $11 {[%emt 0:00:23] Strongly threatening ...Nb5.} 35. Bd3 {[%emt 0:00:34]} Qd7 {[%emt 0:00:33]} 36. Qe3 {[%emt 0:00:40]} (36. Qxd7 $14 {is the one way to stay ahead.} Bxd7 37. Ra5) 36... Nb5 {[%emt 0:01:18]} ({Much worse is} 36... Qd5 $6 37. f3 $11) ({But not} 36... Na4 $6 37. Rb1 g6 38. Rb8+ Kg7 39. Bb5 $1 Qxa7 40. Qxa7 Bxg2+ 41. Kxg2 $11) (36... Nd5 $1 $17 {[%cal Rd5e3]} 37. Qd4 Ne7 38. Qxd7 Bxd7) 37. Bc4 $2 {[%emt 0:00:28]} (37. Bxb5 $11 {and White has nothing to worry.} Bxb5 38. Qb3) 37... Rxa7 $19 {[%emt 0:00:40]} 38. Rb1 {[%emt 0:00:25]} Rb7 {[%emt 0:01:08][%cal Oc6g2] aiming for ...Bxg2+!} 39. e6 {[%emt 0:00:12]} Qe7 {[%emt 0:01:58]} 40. exf7+ {[%emt 0:00:02]} Kf8 {[%emt 0:00:02]} 41. Qd3 {[%emt 0:01:06] [#]} (41. Rd1 $17 {was worth a try.} Qxe3 42. fxe3) 41... Be4 $1 {[%emt 0:00:41]} 42. Qd1 {[%emt 0:00:46]} (42. Ra1 {was the crucial defense.} Rd7 43. Qb3) 42... Bxb1 {[%emt 0:00:06]} 43. Qxb1 {[%emt 0:00:00]} Nd6 $1 {[%emt 0:00:23][%csl LRb1,LRc4,LRf7] Black used his chance.  Weighted Error Value: White=0.58/Black=0.37} 0-1

[Event "1st Henriquez Urena Memorial 2022"]
[Site "Santo Domingo"]
[Date "2022.09.21"]
[Round "6.9"]
[White "Mesa Cruz, Juan Carlos"]
[Black "Arvelo Leo, Gian Carlo"]
[Result "1-0"]
[ECO "B22"]
[WhiteElo "2119"]
[BlackElo "2174"]
[Annotator "TA"]
[PlyCount "89"]
[EventDate "2022.09.16"]
[EventType "swiss"]
[EventCountry "DOM"]
[SourceTitle "playchess.com"]
[Source "ChessBase"]
[SourceQuality "1"]
[TimeControl "5400+30"]

{[%evp 13,89,-11,-6,-19,-25,-12,0,-15,-8,-5,-13,-31,0,0,12,-8,8,-8,-7,-100,0,-58,25,10,10,-29,-16,-59,-80,-66,-60,-55,-50,-115,-64,-109,-107,-114,-127,-166,-168,-160,0,-108,-94,-654,-117,-320,839,-234,-212,-222,-227,-377,-191,-348,-366,-362,-270,-270,-136,-145,-147,-144,77,77,68,11,181,18,4858,4858,29977,29978,29977,29979,29978,29978]} 1. e4 {[%emt 0:00:16][%cal Be2e4,Be4e5][%mdl 32]} c5 {[%emt 0:09:57]} 2. Nf3 {[%emt 0:00:09]} e6 {[%emt 0:00:21]} 3. c3 {[%emt 0:00:12]} Nf6 {[%emt 0:00:12]} 4. e5 {[%emt 0:00:18]} Nd5 {[%emt 0:00:08]} 5. d4 {[%emt 0:00:07]} cxd4 {[%emt 0:00:10]} 6. cxd4 {[%emt 0:00:07]} d6 {[%emt 0:00:24]} 7. exd6 {[%emt 0:01:21]} Bxd6 {[%emt 0:02:17]} 8. Nc3 {[%emt 0:00:42] B22: Sicilian: 2 c3.} O-O {[%emt 0:03:22]} 9. Bd3 {[%emt 0:08:25]} Nxc3 {[%emt 0:17:26]} 10. bxc3 {[%emt 0:00:18] The position is equal.} Nd7 {[%emt 0:01:02]} 11. Qe2 {[%emt 0:05:20]} Qc7 {[%emt 0:10:07]} (11... b6 {feels hotter.} 12. Bg5 Qc7 13. Qe4 g6) 12. Bb2 {[%emt 0:16:19]} Nf6 {[%emt 0:07:45][%cal Ob7b5]} 13. O-O {[%emt 0:02:46] [#]} b6 $146 {[%emt 0:05:33]} ({Predecessor:} 13... Bd7 14. c4 b6 15. Rac1 Rac8 16. d5 Be7 17. Be5 Qd8 18. d6 {1-0 (18) Dmitrenko,V (2444)-Zaksaite,S (2202) Chess.com INT 2021}) 14. Ne5 {[%emt 0:01:26]} Bb7 {[%emt 0:01:09]} (14... Nd5 $5 {[%cal Rd5f4]}) 15. f4 {[%emt 0:01:53]} Nd5 {[%emt 0:13:35][%cal Bf6d5,Bd5e7,Be7g6,Bg6f4,Bf4e2][%mdl 32]} 16. Rf3 {[%emt 0:32:57]} (16. c4 $11 {remains equal.} Nb4 17. Bb1) 16... f5 {[%emt 0:02:47]} (16... f6 $1 $17 {[%cal Rf6e5]} 17. Raf1 (17. Qe4 $2 g6 $19) 17... fxe5 18. fxe5 Rxf3 19. Qxf3 Rf8) 17. Bb5 {[%emt 0:07:38]} (17. Bc2 $11) 17... Rf6 {[%emt 0:16:50]} ({Black should try} 17... Bxe5 $15 18. fxe5 (18. Qxe5 Qxe5 19. fxe5 Nc7 $17) 18... f4) 18. c4 $11 {[%emt 0:01:07]} Ne7 {[%emt 0:00:27]} 19. Re3 {[%emt 0:01:26]} Bxe5 {[%emt 0:01:32]} 20. Rxe5 {[%emt 0:05:34]} Ng6 {[%emt 0:00:36][%csl LRe5,LRf4]} 21. Rxe6 {[%emt 0:09:47]} Nxf4 {[%emt 0:00:10]} 22. Re8+ {[%emt 0:03:22]} Rxe8 23. Qxe8+ {[%emt 0:00:00]} Rf8 {[%emt 0:06:10][%cal Bf6f8,Bf8d8,Bd8d5][%mdl 32]} 24. Qe5 {[%emt 0:00:00]} Qxe5 {[%emt 0:00:00]} 25. dxe5 {[%emt 0:00:00]} Rd8 {[%emt 0:00:00] Prevents Rd1. ...Rd2 is the strong threat.} (25... Bxg2 $2 26. Bc1 Rc8 27. Bxf4 $18) (25... Nxg2 $2 26. e6 a6 27. Ba4 $18 (27. e7 axb5 28. exf8=N Kxf8 $18)) 26. Rf1 {[%emt 0:00:00]} Ne2+ {[%emt 0:00:00]} 27. Kf2 {[%emt 0:00:23]} Nf4 {[%emt 0:00:00]} (27... Rd2 $17 28. e6 Nc3+ 29. Ke3 Rxb2) 28. Kg3 {[%emt 0:01:08]} (28. Kg1 $1 $11 Ne2+ 29. Kf2) 28... Ne6 {[%emt 0:01:17] Threatens to win with ...Rd3+.} 29. Rf2 $2 {[%emt 0:01:59][%mdl 8192]} (29. c5 $17 f4+ 30. Kg4) 29... f4+ $2 (29... Rd3+ $19 {and Black stays clearly on top.} 30. Rf3 (30. Kh4 g5+ 31. Kh5 Bxg2 32. h4 Rh3) 30... f4+ 31. Kh3 Bxf3 32. gxf3 Rxf3+ 33. Kg4 Rf2) 30. Rxf4 $2 {[%emt 0:00:00]} (30. Kg4 $17) 30... Rd5 $4 {[%emt 0:02:13][%mdl 8192]} 31. Rf5 $4 {[%mdl 8192]} (31. cxd5 $18 Nxf4 32. Kxf4 Bxd5 33. a3) 31... Rd3+ $19 {[%emt 0:00:00]} 32. Kh4 {[%emt 0:00:38]} Bxg2 {[%emt 0:00:00]} 33. c5 {[%emt 0:00:29]} (33. Be8 $142 g5+ 34. Rxg5+ Nxg5 35. Kxg5) 33... Rh3+ {[%emt 0:00:18]} 34. Kg4 {[%emt 0:00:02]} g6 {[%emt 0:00:27]} (34... Rxh2 35. Kg3 Be4 36. Kxh2 $15) 35. Bc4 {[%emt 0:00:32]} gxf5+ {[%emt 0:01:05]} 36. Kxf5 {[%emt 0:00:04] [#]} Kf8 {[%emt 0:00:37]} 37. Kxe6 $17 {[%emt 0:00:33]} bxc5 {[%emt 0:00:31][%mdl 4096] Endgame Hoping for ...Rh4. KRB-KB} 38. Kd6 {[%emt 0:00:21] [#]} Rh6+ {[%emt 0:00:27]} ({Not} 38... Rxh2 39. e6 Bc6 40. Ba3 $17) (38... Rh4 $1 $17 {[%cal Rh4c4] and life is bright.} 39. Kxc5 Rxh2) 39. e6 $16 {[%emt 0:00:23]} Bh3 {[%emt 0:00:17][%cal Oh3e6]} (39... Rxh2 {leads to mate.} 40. e7+ Ke8 41. Bb5+) 40. Ba3 {[%emt 0:02:28] White is more active.} (40. Bc1 $14 Rg6 41. Ba3) 40... a5 $2 {[%emt 0:00:46] [#]} (40... Bxe6 $11 41. Bxe6 Rxh2) 41. Bxc5 $2 {[%emt 0:00:00]} ({White has to play} 41. Bc1 $1 $18 {[%cal Rc1h6]} Rf6 42. Bg5) 41... Ke8 $2 {[%emt 0:00:29][%mdl 8192]} (41... Bxe6 $11 42. Bxe6 Rxh2) 42. Bb5+ $18 {[%emt 0:00:00]} Kd8 {[%emt 0:00:24]} 43. Bd7 {[%emt 0:00:00][%cal Rc5b6] White mates.} ({Less strong is} 43. Bb6+ Kc8 44. Bd7+ Kb8 $16) 43... Rxe6+ {[%emt 0:00:35]} 44. Bxe6 {[%emt 0:00:00]} Bxe6 {[%emt 0:00:26]} 45. Kxe6 {[%emt 0:00:00] Weighted Error Value: White=0.64/Black=0.69} 1-0

[Event "1st Henriquez Urena Memorial 2022"]
[Site "Santo Domingo"]
[Date "2022.09.21"]
[Round "6.10"]
[White "Lugo Matos, Richards Reynier"]
[Black "Dominguez, Jose Manuel"]
[Result "1/2-1/2"]
[ECO "C55"]
[WhiteElo "2157"]
[BlackElo "2180"]
[Annotator "TA"]
[PlyCount "20"]
[EventDate "2022.09.16"]
[EventType "swiss"]
[EventCountry "DOM"]
[SourceTitle "playchess.com"]
[Source "ChessBase"]
[SourceQuality "1"]
[TimeControl "5400+30"]

{[%evp 15,20,0,0,-11,-4,-10,0]} 1. e4 {[%emt 0:06:44]} e5 {[%emt 0:04:23]} 2. Nf3 {[%emt 0:00:05]} Nc6 {[%emt 0:00:06][%cal Bb8c6,Bc6a5,Ba5b3][%mdl 32]} 3. Bc4 {[%emt 0:00:04]} d6 {[%emt 0:00:15]} 4. d3 {[%emt 0:00:05]} Be7 {[%emt 0:00:11]} 5. Nc3 {[%emt 0:00:10]} Nf6 {[%emt 0:00:02]} 6. h3 {[%emt 0:00:08]} O-O {[%emt 0:00:21]} 7. O-O {[%emt 0:00:11]} Na5 {[%emt 0:01:13]} 8. Bb3 {[%emt 0:00:12]} c6 {[%emt 0:00:31] The position is equal.} 9. Be3 {[%emt 0:00:08] C55: Two Knights: 4 d3, 4 d4 exd4 5 e5 and Max Lange Attack.} (9. d4 $5 {[%cal Rd4e5]}) 9... Qc7 {[%emt 0:00:56]} 10. Bg5 {[%emt 0:00:22] [#]} Nxb3 $146 {[%emt 0:00:15] A rather calm draw.  Weighted Error Value: White=0.08 (flawless) /Black=0.00 (flawless)} ({Predecessor:} 10... b5 11. Re1 Nxb3 12. axb3 a6 13. Ne2 c5 14. Ng3 Be6 15. Re3 Ne8 16. Nf5 Bxf5 17. exf5 {½-½ (25) Repas,M-Manduch,M Slovakia 1996}) 1/2-1/2